[Event "84th ESP-ch 2019"]
[Site "Marbella"]
[Date "2019.11.19"]
[Round "4.30"]
[White "Hernando Rodrigo, Inmaculada"]
[Black "Martin Carmona, Gaston Manuel"]
[Result "1-0"]
[ECO "A08"]
[WhiteElo "1863"]
[BlackElo "2304"]
[Annotator "ChessBase"]
[PlyCount "65"]
[EventDate "2019.11.16"]
[EventType "swiss"]
[EventCountry "ESP"]
[SourceTitle "playchess.com"]
[Source "ChessBase"]
[SourceQuality "1"]
[TimeControl "5400+30"]

1. Nf3 {[%emt 0:00:00]} Nf6 {[%emt 0:09:18]} 2. g3 {[%emt 0:00:07]} e6 {[%emt 0:00:51]} 3. Bg2 {[%emt 0:00:12]} d5 {[%emt 0:00:54]} 4. O-O {[%emt 0:00:16]} Be7 {[%emt 0:00:05]} 5. d3 {[%emt 0:00:22]} c5 {[%emt 0:02:05]} 6. Nbd2 {[%emt 0:00:56]} Nc6 {[%emt 0:00:32]} 7. e4 {[%emt 0:02:47]} O-O {[%emt 0:00:07]} 8. Re1 {[%emt 0:01:32]} Qc7 {[%emt 0:04:16]} 9. c3 {[%emt 0:01:48]} b6 {[%emt 0:00:31]} 10. Nf1 {[%emt 0:01:45]} dxe4 {[%emt 0:03:34]} 11. dxe4 {[%emt 0:00:19]} Ba6 {[%emt 0:02:53]} 12. Qa4 {[%emt 0:08:05]} Qb7 {[%emt 0:00:30]} 13. Bg5 {[%emt 0:07:22]} h6 {[%emt 0:01:53]} 14. e5 {[%emt 0:08:28]} Nd5 {[%emt 0:13:02]} 15. Bxe7 {[%emt 0:04:09]} Ndxe7 {[%emt 0:00:24]} 16. Rad1 {[%emt 0:01:38]} Rad8 {[%emt 0:01:09]} 17. Rd6 {[%emt 0:04:33]} b5 {[%emt 0:09:27]} 18. Qe4 {[%emt 0:07:20]} Qc7 {[%emt 0:01:37]} 19. Rxd8 {[%emt 0:12:17]} Rxd8 {[%emt 0:00:41]} 20. N3d2 {[%emt 0:04:33]} Rd5 {[%emt 0:03:37]} 21. f4 {[%emt 0:02:04]} Qd7 {[%emt 0:06:23]} 22. Qe2 {[%emt 0:04:40]} Rd3 {[%emt 0:03:37]} 23. Be4 {[%emt 0:00:58]} b4 {[%emt 0:00:24]} 24. Bxd3 {[%emt 0:00:54]} Bxd3 {[%emt 0:00:02]} 25. Qf2 {[%emt 0:01:16]} bxc3 {[%emt 0:03:38]} 26. bxc3 {[%emt 0:00:09]} c4 {[%emt 0:00:39]} 27. Ne3 {[%emt 0:01:52]} Na5 {[%emt 0:00:06]} 28. Nf3 {[%emt 0:02:10]} Nac6 {[%emt 0:00:28]} 29. Rd1 {[%emt 0:02:06]} Nd5 {[%emt 0:02:34]} 30. Nxd5 {[%emt 0:00:48]} exd5 {[%emt 0:00:04]} 31. Nd4 {[%emt 0:03:34]} Nxd4 {[%emt 0:00:37]} 32. Qxd4 {[%emt 0:00:10]} Qa4 {[%emt 0:00:04]} 33. Rxd3 {[%emt 0:05:03]} 1-0

[Event "84th ESP-ch 2019"]
[Site "Marbella"]
[Date "2019.11.19"]
[Round "4.31"]
[White "Hernando Rodrigo, Julio Antonio"]
[Black "De La Cruz Revilla, Miguel"]
[Result "1/2-1/2"]
[ECO "A50"]
[WhiteElo "2271"]
[BlackElo "2138"]
[Annotator "ChessBase"]
[PlyCount "68"]
[EventDate "2019.11.16"]
[EventType "swiss"]
[EventCountry "ESP"]
[SourceTitle "playchess.com"]
[Source "ChessBase"]
[SourceQuality "1"]
[TimeControl "5400+30"]

1. d4 {[%emt 0:00:00]} Nf6 {[%emt 0:01:29]} 2. c4 {[%emt 0:00:00]} Nc6 {[%emt 0:00:27]} 3. Nf3 {[%emt 0:02:10]} e6 {[%emt 0:00:23]} 4. g3 {[%emt 0:00:34]} Bb4+ {[%emt 0:00:08]} 5. Bd2 {[%emt 0:00:17]} Qe7 {[%emt 0:00:12]} 6. a3 {[%emt 0:01:31]} Bxd2+ {[%emt 0:00:18]} 7. Qxd2 {[%emt 0:00:13]} d6 {[%emt 0:06:08]} 8. Nc3 {[%emt 0:03:31]} O-O {[%emt 0:11:25]} 9. Bg2 {[%emt 0:02:36]} e5 {[%emt 0:00:44]} 10. Nd5 {[%emt 0:06:13]} Nxd5 {[%emt 0:00:37]} 11. cxd5 {[%emt 0:00:05]} Nxd4 {[%emt 0:11:12]} 12. Nxd4 {[%emt 0:00:09]} exd4 {[%emt 0:00:02]} 13. Qxd4 {[%emt 0:00:29]} Bd7 {[%emt 0:10:33]} 14. Rd1 {[%emt 0:05:38]} Rfe8 {[%emt 0:22:44]} 15. e3 {[%emt 0:06:11]} Bb5 {[%emt 0:03:38]} 16. a4 {[%emt 0:00:57]} c5 {[%emt 0:02:20]} 17. dxc6 {[%emt 0:00:48]} Bxc6 {[%emt 0:00:11]} 18. O-O {[%emt 0:01:35]} Bxg2 {[%emt 0:06:35]} 19. Kxg2 {[%emt 0:00:06]} a6 {[%emt 0:00:07]} 20. a5 {[%emt 0:02:35]} Rad8 {[%emt 0:00:22]} 21. Rd3 {[%emt 0:00:58]} Qc7 {[%emt 0:07:24]} 22. Qb6 {[%emt 0:02:00]} Re7 {[%emt 0:05:32]} 23. Rc1 {[%emt 0:06:27]} Qxb6 {[%emt 0:03:35]} 24. axb6 {[%emt 0:00:05]} f6 {[%emt 0:00:13]} 25. Rd5 {[%emt 0:09:04]} Kf7 {[%emt 0:00:28]} 26. Kf3 {[%emt 0:00:53]} Rdd7 {[%emt 0:00:18]} 27. e4 {[%emt 0:00:24]} Re5 {[%emt 0:00:24]} 28. Ke3 {[%emt 0:10:10]} Rde7 {[%emt 0:00:19]} 29. Rxe5 {[%emt 0:01:48]} dxe5 {[%emt 0:00:11]} 30. f4 {[%emt 0:10:56]} Rd7 {[%emt 0:01:04]} 31. Rc5 {[%emt 0:03:42]} Ke6 {[%emt 0:00:59]} 32. b4 {[%emt 0:02:44]} Rd6 {[%emt 0:02:09]} 33. f5+ {[%emt 0:01:19]} Ke7 {[%emt 0:00:08]} 34. Rc7+ {[%emt 0:00:12]} Rd7 {[%emt 0:00:06]} 1/2-1/2

[Event "84th ESP-ch 2019"]
[Site "Marbella"]
[Date "2019.11.19"]
[Round "4.32"]
[White "Diaz Mino, Pablo"]
[Black "Silva Lucena, Cristian"]
[Result "1/2-1/2"]
[ECO "A57"]
[WhiteElo "2135"]
[BlackElo "2244"]
[Annotator "ChessBase"]
[PlyCount "133"]
[EventDate "2019.11.16"]
[EventType "swiss"]
[EventCountry "ESP"]
[SourceTitle "playchess.com"]
[Source "ChessBase"]
[SourceQuality "1"]
[TimeControl "5400+30"]

1. d4 {[%emt 0:01:11]} Nf6 {[%emt 0:00:25]} 2. c4 {[%emt 0:00:33]} c5 {[%emt 0:00:04]} 3. d5 {[%emt 0:00:05]} b5 {[%emt 0:00:09]} 4. Qc2 {[%emt 0:00:04]} b4 {[%emt 0:00:18]} 5. e4 {[%emt 0:00:23]} d6 {[%emt 0:00:06]} 6. Bd3 {[%emt 0:05:08]} g6 {[%emt 0:00:25]} 7. f4 {[%emt 0:04:20]} Bg7 {[%emt 0:01:17]} 8. Nf3 {[%emt 0:00:12]} O-O {[%emt 0:00:12]} 9. O-O {[%emt 0:00:05]} Nbd7 {[%emt 0:00:06]} 10. a3 {[%emt 0:01:38]} a5 {[%emt 0:00:58]} 11. Ra2 {[%emt 0:08:14]} Rb8 {[%emt 0:01:51]} 12. b3 {[%emt 0:00:17]} a4 {[%emt 0:01:20]} 13. Nbd2 {[%emt 0:02:56]} Bh6 {[%emt 0:07:51]} 14. g3 {[%emt 0:04:38]} Qb6 {[%emt 0:03:01]} 15. Kg2 {[%emt 0:04:23]} e5 {[%emt 0:06:34]} 16. f5 {[%emt 0:30:35]} Ng4 {[%emt 0:09:21]} 17. Nb1 {[%emt 0:00:22]} Bxc1 {[%emt 0:00:02]} 18. Qxc1 {[%emt 0:00:10]} axb3 {[%emt 0:00:07]} 19. Rb2 {[%emt 0:00:40]} bxa3 {[%emt 0:01:08]} 20. Nxa3 {[%emt 0:00:18]} Qb4 {[%emt 0:01:28]} 21. h3 {[%emt 0:10:46]} Ngf6 {[%emt 0:09:34]} 22. Nb1 {[%emt 0:00:55]} Ra8 {[%emt 0:03:36]} 23. Qd2 {[%emt 0:05:20]} Kg7 {[%emt 0:03:35]} 24. g4 {[%emt 0:06:22]} Ra5 {[%emt 0:03:38]} 25. Rf2 {[%emt 0:01:38]} Ba6 {[%emt 0:00:46]} 26. fxg6 {[%emt 0:04:40]} hxg6 {[%emt 0:07:35]} 27. Nh4 {[%emt 0:02:48]} Qxd2 {[%emt 0:05:27]} 28. Nxd2 {[%emt 0:00:07]} Ra3 {[%emt 0:00:12]} 29. Rxb3 {[%emt 0:02:46]} Rxb3 {[%emt 0:00:45]} 30. Nxb3 {[%emt 0:00:01]} Rb8 {[%emt 0:00:01]} 31. Na5 {[%emt 0:00:12]} Rb4 {[%emt 0:01:22]} 32. Ra2 {[%emt 0:01:18]} Nb6 {[%emt 0:00:13]} 33. Nc6 {[%emt 0:01:04]} Ra4 {[%emt 0:00:03]} 34. Rxa4 {[%emt 0:00:22]} Nxa4 {[%emt 0:00:01]} 35. Nb8 {[%emt 0:00:40]} Nb2 {[%emt 0:00:50]} 36. Nxa6 {[%emt 0:01:33]} Nxd3 {[%emt 0:00:02]} 37. Kf3 {[%emt 0:00:01]} Nb2 {[%emt 0:00:35]} 38. g5 {[%emt 0:01:17]} Nh7 {[%emt 0:01:45]} 39. Kg4 {[%emt 0:00:17]} Nxc4 {[%emt 0:00:20]} 40. Nc7 {[%emt 0:00:15]} Kf8 {[%emt 0:00:34]} 41. Nb5 {[%emt 0:01:11]} Ke7 {[%emt 0:00:43]} 42. Ng2 {[%emt 0:00:36]} Nf8 {[%emt 0:00:59]} 43. h4 {[%emt 0:00:10]} Nd2 {[%emt 0:01:00]} 44. Nc3 {[%emt 0:00:00]} c4 {[%emt 0:01:27]} 45. Ne3 {[%emt 0:00:18]} Nd7 {[%emt 0:00:30]} 46. h5 {[%emt 0:00:54]} gxh5+ {[%emt 0:00:17]} 47. Kxh5 {[%emt 0:00:01]} Nc5 {[%emt 0:00:19]} 48. Kg4 {[%emt 0:00:13]} Nd3 {[%emt 0:00:56]} 49. Kf5 {[%emt 0:00:56]} Nf3 {[%emt 0:01:27]} 50. Kg4 {[%emt 0:00:46]} Nd2 {[%emt 0:00:37]} 51. Kf5 {[%emt 0:00:17]} Nf2 {[%emt 0:00:48]} 52. g6 {[%emt 0:00:25]} fxg6+ {[%emt 0:00:35]} 53. Kxg6 {[%emt 0:00:01]} Nfxe4 {[%emt 0:00:35]} 54. Nxe4 {[%emt 0:00:01]} Nxe4 {[%emt 0:00:07]} 55. Nxc4 {[%emt 0:00:02]} Nc3 {[%emt 0:00:43]} 56. Ne3 {[%emt 0:00:42]} Nxd5 {[%emt 0:00:14]} 57. Nxd5+ {[%emt 0:00:26]} Ke6 {[%emt 0:00:01]} 58. Nc3 {[%emt 0:00:19]} d5 {[%emt 0:00:11]} 59. Kg5 {[%emt 0:00:20]} d4 {[%emt 0:00:27]} 60. Ne4 {[%emt 0:00:14]} Kd5 {[%emt 0:00:48]} 61. Kf5 {[%emt 0:00:18]} d3 {[%emt 0:00:05]} 62. Nd2 {[%emt 0:00:14]} Kd4 {[%emt 0:00:02]} 63. Nf3+ {[%emt 0:00:21]} Kd5 {[%emt 0:00:27]} 64. Nd2 {[%emt 0:00:06]} Kd4 {[%emt 0:00:05]} 65. Nf3+ {[%emt 0:00:03]} Ke3 {[%emt 0:00:04]} 66. Nxe5 {[%emt 0:00:06]} d2 {[%emt 0:00:07]} 67. Nc4+ {[%emt 0:00:02]} 1/2-1/2

[Event "84th ESP-ch 2019"]
[Site "Marbella"]
[Date "2019.11.19"]
[Round "4.33"]
[White "Boutahar Belgasi, Tarik"]
[Black "Hernandez Roldan, Miguel"]
[Result "0-1"]
[ECO "A36"]
[WhiteElo "2027"]
[BlackElo "2229"]
[Annotator "ChessBase"]
[PlyCount "130"]
[EventDate "2019.11.16"]
[EventType "swiss"]
[EventCountry "ESP"]
[SourceTitle "playchess.com"]
[Source "ChessBase"]
[SourceQuality "1"]
[TimeControl "5400+30"]

1. c4 {[%emt 0:04:50]} c5 {[%emt 0:00:00]} 2. Nc3 {[%emt 0:00:20]} g6 {[%emt 0:00:00]} 3. g3 {[%emt 0:00:17]} Bg7 {[%emt 0:00:21]} 4. Bg2 {[%emt 0:00:07]} Nc6 {[%emt 0:00:05]} 5. e3 {[%emt 0:00:10]} e5 {[%emt 0:00:14]} 6. b3 {[%emt 0:00:34]} d6 {[%emt 0:02:26]} 7. Bb2 {[%emt 0:00:23]} Nge7 {[%emt 0:00:17]} 8. Nge2 {[%emt 0:04:22]} O-O {[%emt 0:00:09]} 9. O-O {[%emt 0:00:08]} Be6 {[%emt 0:04:20]} 10. a3 {[%emt 0:06:03]} Rc8 {[%emt 0:03:34]} 11. Nd5 {[%emt 0:01:22]} Qd7 {[%emt 0:03:07]} 12. Re1 {[%emt 0:08:53]} f5 {[%emt 0:03:14]} 13. d3 {[%emt 0:09:40]} g5 {[%emt 0:04:31]} 14. Qd2 {[%emt 0:11:15]} h6 {[%emt 0:08:02]} 15. Rad1 {[%emt 0:02:33]} Bxd5 {[%emt 0:00:47]} 16. cxd5 {[%emt 0:00:03]} Nd8 {[%emt 0:00:09]} 17. f4 {[%emt 0:02:55]} Rc7 {[%emt 0:16:03]} 18. Kh1 {[%emt 0:00:37]} Ng6 {[%emt 0:02:02]} 19. Rf1 {[%emt 0:02:04]} exf4 {[%emt 0:03:51]} 20. exf4 {[%emt 0:00:25]} g4 {[%emt 0:00:41]} 21. Rfe1 {[%emt 0:04:17]} h5 {[%emt 0:01:49]} 22. Rc1 {[%emt 0:07:01]} h4 {[%emt 0:06:41]} 23. Bxg7 {[%emt 0:11:03]} Kxg7 {[%emt 0:01:20]} 24. d4 {[%emt 0:01:24]} b6 {[%emt 0:04:37]} 25. dxc5 {[%emt 0:08:28]} bxc5 {[%emt 0:00:09]} 26. Qc3+ {[%emt 0:00:23]} Kg8 {[%emt 0:00:12]} 27. Nd4 {[%emt 0:01:31]} Qg7 {[%emt 0:01:13]} 28. Ne6 {[%emt 0:01:06]} Nxe6 {[%emt 0:00:05]} 29. Rxe6 {[%emt 0:00:08]} h3 {[%emt 0:00:10]} 30. Bf1 {[%emt 0:00:48]} Rd8 {[%emt 0:00:12]} 31. Qxg7+ {[%emt 0:05:46]} Kxg7 {[%emt 0:00:10]} 32. Rce1 {[%emt 0:00:50]} Rf7 {[%emt 0:01:51]} 33. Kg1 {[%emt 0:00:15]} Rf6 {[%emt 0:01:31]} 34. R6e3 {[%emt 0:00:46]} Rb8 {[%emt 0:01:27]} 35. Bc4 {[%emt 0:01:03]} Rb7 {[%emt 0:01:38]} 36. a4 {[%emt 0:00:43]} a5 {[%emt 0:00:28]} 37. Kf2 {[%emt 0:00:10]} Rff7 {[%emt 0:00:34]} 38. Re8 {[%emt 0:00:31]} Nf8 {[%emt 0:02:41]} 39. Bb5 {[%emt 0:00:44]} Nd7 {[%emt 0:01:27]} 40. R1e6 {[%emt 0:01:38]} Rb6 {[%emt 0:00:19]} 41. Ra8 {[%emt 0:00:36]} Nf6 {[%emt 0:00:12]} 42. Bc4 {[%emt 0:01:34]} Ne4+ {[%emt 0:00:02]} 43. Rxe4 {[%emt 0:00:40]} fxe4 {[%emt 0:00:05]} 44. Rxa5 {[%emt 0:00:45]} e3+ {[%emt 0:04:58]} 45. Ke2 {[%emt 0:01:00]} Rb4 {[%emt 0:01:00]} 46. Kxe3 {[%emt 0:01:04]} Re7+ {[%emt 0:00:11]} 47. Kf2 {[%emt 0:00:29]} Re4 {[%emt 0:00:25]} 48. Rb5 {[%emt 0:00:34]} Rexc4 {[%emt 0:00:43]} 49. bxc4 {[%emt 0:00:03]} Rxa4 {[%emt 0:00:09]} 50. Rb6 {[%emt 0:00:52]} Ra2+ {[%emt 0:00:05]} 51. Ke3 {[%emt 0:01:24]} Rxh2 {[%emt 0:00:09]} 52. Rxd6 {[%emt 0:00:45]} Rg2 {[%emt 0:00:01]} 53. Rd7+ {[%emt 0:00:32]} Kf6 {[%emt 0:00:27]} 54. Rh7 {[%emt 0:00:20]} Rxg3+ {[%emt 0:00:04]} 55. Ke4 {[%emt 0:00:25]} Rg2 {[%emt 0:00:19]} 56. d6 {[%emt 0:00:32]} Rd2 {[%emt 0:01:50]} 57. d7 {[%emt 0:00:30]} Rd4+ {[%emt 0:00:02]} 58. Ke3 {[%emt 0:00:24]} Ke6 {[%emt 0:00:00]} 59. Rh4 {[%emt 0:00:29]} Rxd7 {[%emt 0:03:07]} 60. Rxg4 {[%emt 0:00:04]} Rh7 {[%emt 0:00:14]} 61. Rg1 {[%emt 0:00:51]} h2 {[%emt 0:00:01]} 62. Rh1 {[%emt 0:00:31]} Kf5 {[%emt 0:00:05]} 63. Kf3 {[%emt 0:00:11]} Rh3+ {[%emt 0:00:28]} 64. Kg2 {[%emt 0:00:02]} Rh4 {[%emt 0:00:06]} 65. Kg3 {[%emt 0:00:52]} Rg4+ {[%emt 0:00:18]} 0-1

[Event "84th ESP-ch 2019"]
[Site "Marbella"]
[Date "2019.11.19"]
[Round "4.34"]
[White "Rodriguez Reinoso, Victoriano"]
[Black "Roman Lopez, Jesus"]
[Result "1-0"]
[ECO "A34"]
[WhiteElo "2204"]
[BlackElo "1993"]
[Annotator "ChessBase"]
[PlyCount "59"]
[EventDate "2019.11.16"]
[EventType "swiss"]
[EventCountry "ESP"]
[SourceTitle "playchess.com"]
[Source "ChessBase"]
[SourceQuality "1"]
[TimeControl "5400+30"]

1. c4 {[%emt 0:00:00]} c5 {[%emt 0:00:00]} 2. g3 {[%emt 0:00:00]} Nf6 {[%emt 0:00:01]} 3. Bg2 {[%emt 0:00:20]} d5 {[%emt 0:00:07]} 4. cxd5 {[%emt 0:01:13]} Nxd5 {[%emt 0:00:08]} 5. Nc3 {[%emt 0:00:24]} Nc7 {[%emt 0:00:18]} 6. d3 {[%emt 0:01:31]} Nc6 {[%emt 0:02:35]} 7. Bxc6+ {[%emt 0:01:42]} bxc6 {[%emt 0:00:02]} 8. Qa4 {[%emt 0:00:32]} Bd7 {[%emt 0:10:07]} 9. Nf3 {[%emt 0:00:29]} Nd5 {[%emt 0:03:14]} 10. Ne4 {[%emt 0:03:45]} e6 {[%emt 0:04:52]} 11. Ne5 {[%emt 0:07:14]} Qc7 {[%emt 0:10:48]} 12. Nxd7 {[%emt 0:01:51]} Qxd7 {[%emt 0:06:21]} 13. O-O {[%emt 0:04:23]} Rb8 {[%emt 0:08:01]} 14. Qc4 {[%emt 0:02:48]} h5 {[%emt 0:11:05]} 15. h4 {[%emt 0:01:45]} f6 {[%emt 0:25:16]} 16. a3 {[%emt 0:29:17]} e5 {[%emt 0:00:08]} 17. Kg2 {[%emt 0:02:05]} Qg4 {[%emt 0:06:56]} 18. f3 {[%emt 0:03:56]} Qe6 {[%emt 0:00:01]} 19. Nxc5 {[%emt 0:02:16]} Bxc5 {[%emt 0:01:21]} 20. Qxc5 {[%emt 0:00:02]} g5 {[%emt 0:05:18]} 21. Qxa7 {[%emt 0:03:55]} O-O {[%emt 0:00:27]} 22. hxg5 {[%emt 0:02:18]} fxg5 {[%emt 0:00:34]} 23. Rh1 {[%emt 0:00:59]} h4 {[%emt 0:00:16]} 24. b4 {[%emt 0:04:10]} e4 {[%emt 0:01:26]} 25. Bxg5 {[%emt 0:05:30]} exf3+ {[%emt 0:00:34]} 26. exf3 {[%emt 0:00:16]} Qe2+ {[%emt 0:01:11]} 27. Qf2 {[%emt 0:00:11]} Qe5 {[%emt 0:01:35]} 28. Bd2 {[%emt 0:05:29]} Rb7 {[%emt 0:00:25]} 29. Rae1 {[%emt 0:00:31]} Qh5 {[%emt 0:00:50]} 30. Rxh4 {[%emt 0:00:31]} 1-0

[Event "84th ESP-ch 2019"]
[Site "Marbella"]
[Date "2019.11.19"]
[Round "4.35"]
[White "Rodriguez Redondo, Adhara"]
[Black "Perez Guerra, Alberto"]
[Result "1/2-1/2"]
[ECO "B47"]
[WhiteElo "2199"]
[BlackElo "1988"]
[Annotator "ChessBase"]
[PlyCount "92"]
[EventDate "2019.11.16"]
[EventType "swiss"]
[EventCountry "ESP"]
[SourceTitle "playchess.com"]
[Source "ChessBase"]
[SourceQuality "1"]
[TimeControl "5400+30"]

1. e4 {[%emt 0:00:00]} c5 {[%emt 0:07:07]} 2. Nf3 {[%emt 0:00:03]} e6 {[%emt 0:00:57]} 3. d4 {[%emt 0:00:07]} cxd4 {[%emt 0:00:01]} 4. Nxd4 {[%emt 0:00:07]} Nc6 {[%emt 0:00:07]} 5. Nc3 {[%emt 0:00:38]} Qc7 {[%emt 0:02:11]} 6. Be2 {[%emt 0:00:41]} Nf6 {[%emt 0:00:08]} 7. O-O {[%emt 0:00:35]} Be7 {[%emt 0:00:27]} 8. Be3 {[%emt 0:02:45]} O-O {[%emt 0:00:39]} 9. f4 {[%emt 0:03:25]} d6 {[%emt 0:00:54]} 10. Ndb5 {[%emt 0:08:36]} Qb8 {[%emt 0:00:53]} 11. a4 {[%emt 0:03:05]} a6 {[%emt 0:03:42]} 12. Na3 {[%emt 0:01:19]} d5 {[%emt 0:23:15]} 13. exd5 {[%emt 0:07:46]} Rd8 {[%emt 0:01:58]} 14. Bb6 {[%emt 0:17:29]} Rd7 {[%emt 0:02:03]} 15. Bd3 {[%emt 0:11:44]} Nxd5 {[%emt 0:07:00]} 16. Nxd5 {[%emt 0:01:26]} exd5 {[%emt 0:03:47]} 17. c3 {[%emt 0:07:48]} Bf6 {[%emt 0:13:33]} 18. Qc2 {[%emt 0:11:57]} h6 {[%emt 0:04:26]} 19. Kh1 {[%emt 0:02:27]} Re7 {[%emt 0:03:21]} 20. Bc5 {[%emt 0:02:43]} Re8 {[%emt 0:00:04]} 21. Qb3 {[%emt 0:03:34]} Qc7 {[%emt 0:06:48]} 22. Bb6 {[%emt 0:03:07]} Qd6 {[%emt 0:00:24]} 23. Rad1 {[%emt 0:02:31]} Bg4 {[%emt 0:00:05]} 24. Rd2 {[%emt 0:00:57]} Ne7 {[%emt 0:05:03]} 25. Bb1 {[%emt 0:01:49]} Qc6 {[%emt 0:02:59]} 26. Nc2 {[%emt 0:01:46]} Bd7 {[%emt 0:02:50]} 27. a5 {[%emt 0:02:08]} Qb5 {[%emt 0:01:19]} 28. Qxb5 {[%emt 0:00:02]} Bxb5 {[%emt 0:00:01]} 29. Rfd1 {[%emt 0:01:21]} Ba4 {[%emt 0:00:40]} 30. Bd4 {[%emt 0:01:16]} Bxd4 {[%emt 0:00:29]} 31. Rxd4 {[%emt 0:00:02]} Bc6 {[%emt 0:01:10]} 32. Nb4 {[%emt 0:00:48]} Ba4 {[%emt 0:01:06]} 33. Bc2 {[%emt 0:01:32]} Bxc2 {[%emt 0:00:55]} 34. Nxc2 {[%emt 0:00:01]} Nc6 {[%emt 0:02:35]} 35. Rxd5 {[%emt 0:00:45]} Re2 {[%emt 0:00:02]} 36. R5d2 {[%emt 0:00:51]} Rxd2 {[%emt 0:00:28]} 37. Rxd2 {[%emt 0:00:05]} Nxa5 {[%emt 0:00:01]} 38. Rd7 {[%emt 0:01:02]} Re8 {[%emt 0:03:09]} 39. h3 {[%emt 0:00:33]} Re2 {[%emt 0:00:17]} 40. Nd4 {[%emt 0:00:33]} Rxb2 {[%emt 0:00:01]} 41. Rd8+ {[%emt 0:00:22]} Kh7 {[%emt 0:00:01]} 42. Rd7 {[%emt 0:00:23]} Kg8 {[%emt 0:02:36]} 43. Rd8+ {[%emt 0:00:02]} Kh7 {[%emt 0:00:07]} 44. Rd7 {[%emt 0:00:01]} Kg8 {[%emt 0:01:33]} 45. Rd8+ {[%emt 0:00:02]} Kh7 {[%emt 0:00:10]} 46. Rd7 {[%emt 0:00:03]} Nc4 1/2-1/2

[Event "84th ESP-ch 2019"]
[Site "Marbella"]
[Date "2019.11.19"]
[Round "4.36"]
[White "Perez Ramos, Juan Carlos"]
[Black "Represa Perez, Mireya"]
[Result "0-1"]
[ECO "A46"]
[WhiteElo "1888"]
[BlackElo "2189"]
[Annotator "ChessBase"]
[PlyCount "54"]
[EventDate "2019.11.16"]
[EventType "swiss"]
[EventCountry "ESP"]
[SourceTitle "playchess.com"]
[Source "ChessBase"]
[SourceQuality "1"]
[TimeControl "5400+30"]

1. d4 {[%emt 0:00:00]} Nf6 {[%emt 0:00:00]} 2. Nf3 {[%emt 0:00:00]} e6 {[%emt 0:00:00]} 3. Bf4 {[%emt 0:00:19]} d5 {[%emt 0:00:58]} 4. e3 {[%emt 0:00:31]} c5 {[%emt 0:01:04]} 5. c3 {[%emt 0:00:31]} Bd6 {[%emt 0:00:37]} 6. Bg3 {[%emt 0:00:28]} Qc7 {[%emt 0:05:56]} 7. Ne5 {[%emt 0:09:44]} Nbd7 {[%emt 0:02:41]} 8. f4 {[%emt 0:05:18]} Ne4 {[%emt 0:05:59]} 9. Nd2 {[%emt 0:05:05]} O-O {[%emt 0:08:46]} 10. Nxe4 {[%emt 0:14:30]} dxe4 {[%emt 0:00:06]} 11. Be2 {[%emt 0:16:42]} Nf6 {[%emt 0:04:36]} 12. O-O {[%emt 0:01:41]} Nd5 {[%emt 0:00:34]} 13. Qd2 {[%emt 0:00:55]} Rd8 {[%emt 0:19:25]} 14. Bh4 {[%emt 0:06:24]} f6 {[%emt 0:01:03]} 15. Ng4 {[%emt 0:02:21]} cxd4 {[%emt 0:02:26]} 16. Qxd4 {[%emt 0:05:45]} Nxf4 {[%emt 0:06:12]} 17. Rxf4 {[%emt 0:10:26]} Bxf4 {[%emt 0:00:13]} 18. Qxe4 {[%emt 0:00:13]} Bd6 {[%emt 0:02:25]} 19. Bc4 {[%emt 0:01:11]} Rf8 {[%emt 0:06:07]} 20. Bxe6+ {[%emt 0:01:10]} Bxe6 {[%emt 0:00:06]} 21. Qxe6+ {[%emt 0:00:07]} Kh8 {[%emt 0:00:23]} 22. Nxf6 {[%emt 0:05:07]} Bxh2+ {[%emt 0:04:35]} 23. Kh1 {[%emt 0:00:15]} Qd6 {[%emt 0:00:41]} 24. Qxd6 {[%emt 0:03:59]} Bxd6 {[%emt 0:00:06]} 25. Nd5 {[%emt 0:00:08]} Rae8 {[%emt 0:01:07]} 26. Re1 {[%emt 0:02:24]} Rf5 27. Nf4 {[%emt 0:02:56]} g5 {[%emt 0:01:15]} 0-1

[Event "84th ESP-ch 2019"]
[Site "Marbella"]
[Date "2019.11.19"]
[Round "4.38"]
[White "Vega Gutierrez, Belinda"]
[Black "Moreno Latorre, Fco Jose"]
[Result "1-0"]
[ECO "B06"]
[WhiteElo "2161"]
[BlackElo "1875"]
[Annotator "ChessBase"]
[PlyCount "65"]
[EventDate "2019.11.16"]
[EventType "swiss"]
[EventCountry "ESP"]
[SourceTitle "playchess.com"]
[Source "ChessBase"]
[SourceQuality "1"]
[TimeControl "5400+30"]

1. e4 {[%emt 0:00:00]} g6 {[%emt 0:00:40]} 2. d4 {[%emt 0:00:21]} Bg7 {[%emt 0:00:13]} 3. Nc3 {[%emt 0:01:34]} a6 {[%emt 0:00:17]} 4. Nf3 {[%emt 0:02:59]} b5 {[%emt 0:01:11]} 5. Bd3 {[%emt 0:00:18]} Bb7 {[%emt 0:00:34]} 6. Ne2 {[%emt 0:01:40]} d6 {[%emt 0:05:49]} 7. h4 {[%emt 0:09:01]} h6 {[%emt 0:02:29]} 8. Ng3 {[%emt 0:12:02]} e6 {[%emt 0:05:39]} 9. c3 {[%emt 0:00:42]} Nd7 {[%emt 0:08:13]} 10. Be3 {[%emt 0:06:27]} c5 {[%emt 0:06:26]} 11. Qe2 {[%emt 0:08:09]} Ne7 {[%emt 0:02:43]} 12. O-O-O {[%emt 0:07:34]} b4 {[%emt 0:04:35]} 13. cxb4 {[%emt 0:00:53]} cxb4 {[%emt 0:01:55]} 14. Kb1 {[%emt 0:00:38]} a5 {[%emt 0:19:52]} 15. Nd2 {[%emt 0:17:02]} Nc6 {[%emt 0:19:12]} 16. d5 {[%emt 0:05:39]} Nd4 {[%emt 0:03:00]} 17. Bxd4 {[%emt 0:13:41]} Bxd4 {[%emt 0:00:02]} 18. dxe6 {[%emt 0:00:11]} fxe6 {[%emt 0:00:22]} 19. Nf3 {[%emt 0:06:54]} Bg7 {[%emt 0:01:10]} 20. Bb5 {[%emt 0:01:33]} Qe7 {[%emt 0:05:11]} 21. Rc1 {[%emt 0:01:57]} Rc8 {[%emt 0:05:04]} 22. Rxc8+ {[%emt 0:00:32]} Bxc8 {[%emt 0:00:01]} 23. Rc1 {[%emt 0:00:10]} O-O {[%emt 0:00:56]} 24. Rc7 {[%emt 0:01:11]} Qd8 {[%emt 0:01:51]} 25. Rc1 {[%emt 0:00:29]} Nc5 {[%emt 0:02:18]} 26. e5 {[%emt 0:00:26]} a4 {[%emt 0:01:52]} 27. Qc2 {[%emt 0:00:40]} b3 {[%emt 0:00:17]} 28. Qxg6 {[%emt 0:00:32]} bxa2+ {[%emt 0:00:33]} 29. Kxa2 {[%emt 0:00:01]} Nb3 {[%emt 0:00:41]} 30. Rd1 {[%emt 0:00:16]} Qc7 {[%emt 0:01:14]} 31. Nh5 {[%emt 0:00:59]} dxe5 {[%emt 0:00:28]} 32. Rd7 {[%emt 0:00:27]} Nc1+ {[%emt 0:00:38]} 33. Kb1 {[%emt 0:00:07]} 1-0